Cogmind - Beta 10.2 @@@ ROGUE MODE // 2021.08.16 @ 23:11:15 Player: Gilgameshx13 Result: Destroyed by G-47 Trooper with Particle Gun Performance ------------- Evolutions (2) 1000 Regions Visited (3) 600 Robots Destroyed (21) 105 Value Destroyed (539) 539 Prototype IDs (0) 0 Alien Tech Used (0) 0 Bonus (0) 0 TOTAL SCORE: 2244 Bonus ------- None Cogmind --------- Core Integrity 0/550 Matter 71/300 Energy 100/100 System Corruption 0% Temperature Cool (9) Movement Core (300) Ox5 Location -8/Materials Parts ------- > --- POWER (1) -------- (None) > --- PROPULSION (4) --- (None) > --- UTILITY (4) ------ Large Storage Unit Improved Terrain Scan Processor > --- WEAPON (2) ------- (None) > --- INVENTORY (10) --- Ion Engine Large Storage Unit Peak State ------------ > --- POWER ------------ Ion Engine > --- PROPULSION ------- Compact Wheel Compact Wheel Hover Unit Hover Unit > --- UTILITY ---------- Large Storage Unit Improved Terrain Scan Processor Hardened Light Armor Plating > --- WEAPON ----------- Autogun Minigun > --- INVENTORY -------- Ion Engine Light Nuclear Core Large Storage Unit Medium Laser Medium Laser [Rating: 16] Favorites ----------- Power Ion Engine Engine Ion Engine Power Core Light Nuclear Core Propulsion Compact Wheel Wheel Compact Wheel Hover Unit Hover Unit Utility Large Storage Unit Storage Large Storage Unit Processor Improved Terrain Scan Processor Protection Hardened Light Armor Plating Weapon Autogun Energy Gun Medium Laser Ballistic Gun Autogun Build | -11 -10 -9 -8 ------- Run | Scr Mat Mat Mat Slots Evolved 4 | . . 2 2 Power . | . . . . Propulsion 2 | . . . 2 Utility 2 | . . 2 . Weapon . | . . . . Parts Attached 19 | 5 4 . 10 Power 2 | 1 . . 1 Engine 1 | 1 . . . Core 1 | . . . 1 Reactor . | . . . . Propulsion 5 | 2 . . 3 Treads . | . . . . Leg . | . . . . Wheel 3 | 2 . . 1 Hover 2 | . . . 2 Flight . | . . . . Utility 5 | 1 2 . 2 Device . | . . . . Storage 2 | 1 1 . . Processor 1 | . . . 1 Hackware . | . . . . Protection 2 | . 1 . 1 Artifact . | . . . . Weapon 7 | 1 2 . 4 Energy Gun 3 | 1 . . 2 Energy Cannon . | . . . . Ballistic Gun 4 | . 2 . 2 Ballistic Cannon . | . . . . Launcher . | . . . . Special Weapon . | . . . . Impact Weapon . | . . . . Slashing Weapon . | . . . . Piercing Weapon . | . . . . Special Melee Weapon . | . . . . Unidentified Prototypes . | . . . . Parts Lost 13 | . . 2 11 Power 2 | . . . 2 Propulsion 5 | . . 1 4 Utility 1 | . . . 1 Weapon 5 | . . 1 4 Highest Loss Streak 9 | . . 2 9 Average Slot Usage (%) 71 | . 91 71 53 Engine 10 | . 14 11 5 Wheel 18 | . 28 19 8 Hover 3 | . . . 10 Storage 11 | . 14 11 9 Processor 2 | . . . 7 Protection 7 | . 8 11 1 Ballistic Gun 17 | . 23 19 9 Naked Turns . | . . . . Heaviest Build 32 | 11 32 32 32 Greatest Support 32 | 32 32 32 32 Greatest Overweight (x) 6 | . . 1 6 Average Overweight (x) . | . . . 1 Largest Inventory Capacity 10 | 6 10 10 10 Average Capacity 9 | 5 7 10 10 Most Carried 9 | 5 6 7 9 Average Carried 5 | 3 5 6 4 Final Capacity 10 | 6 10 10 10 Final Carried 7 | 5 6 7 2 Class Distribution -------------------- 100% | Mutant Dominant Class ---------------- Mutant | -10/Materials Mutant | -9/Materials Mutant | -8/Materials Resources | -11 -10 -9 -8 ----------- Run | Scr Mat Mat Mat Matter Collected 636 | 248 120 173 95 Remotely . | . . . . Salvage Created 684 | . 114 415 155 Parts 49 | . 11 28 10 Haulers Intercepted . | . . . . Recyclers Shooed 1 | . . . 1 Parts Field Recycled . | . . . . Retrieved Matter . | . . . . Parts Self-Destructed . | . . . . Prevented . | . . . . Kills | -11 -10 -9 -8 ------- Run | Scr Mat Mat Mat Combat Hostiles Destroyed 19 | . 3 10 6 Guns 19 | . 3 10 6 Classes Destroyed 5 | . 4 1 . Worker 1 | . 1 . . Operator 1 | . 1 . . Swarmer 9 | . 2 3 4 Grunt 4 | . 1 2 1 Sentry 6 | . . 5 1 Best Kill Streak 4 | . 4 3 2 Combat Bots Only 3 | . 2 3 2 Max Kills in Single Turn 2 | . 1 1 2 Gunslinging 1 | . . . 1 Exploded . | . . . . Melee . | . . . . Uniques/NPCs Destroyed . | . . . . Combat | -11 -10 -9 -8 -------- Run | Scr Mat Mat Mat Damage Taken 1714 | . 96 412 1206 Core 596 | . 26 15 555 Absorbed by Shields . | . . . . Core Remaining (%) 95 | 100 89 96 . Volleys Fired 79 | . 12 38 29 Largest 2 | . 2 2 2 Hottest 73 | . 46 46 73 Shots Fired 140 | . 24 66 50 Gun 140 | . 24 66 50 Cannon . | . . . . Launcher . | . . . . Special . | . . . . Kinetic 135 | . 24 66 45 Thermal 5 | . . . 5 Explosive . | . . . . Electromagnetic . | . . . . Robot Hit Streak 11 | . 4 11 11 Robot Miss Streak 10 | . 6 4 10 Penetration Max . | . . . . Secondary Targets 2 | . . 1 1 Max Gunslinging Chain 1 | . . 1 1 Shots Hit Robots 85 | . 12 41 32 Core Hits 31 | . 5 17 9 Critical Hits 1 | . . . 1 Critical Kills 1 | . . . 1 Critical Parts Destroyed . | . . . . Melee Attacks . | . . . . Impact . | . . . . Slashing . | . . . . Piercing . | . . . . Sneak Attacks . | . . . . Combat Hostiles . | . . . . Follow-up Attacks . | . . . . Damage Inflicted 1259 | . 171 580 508 Guns 1259 | . 171 580 508 Cannons . | . . . . Explosions . | . . . . Melee . | . . . . Ramming . | . . . . Kinetic 1209 | . 171 580 458 Thermal 50 | . . . 50 Explosive . | . . . . Electromagnetic . | . . . . Impact . | . . . . Slashing . | . . . . Piercing . | . . . . Highest Corruption . | . . . . Average Corruption . | . . . . Corruption Purged . | . . . . Overload Shots . | . . . . Overflow Damage . | . . . . Projectiles . | . . . . Explosions . | . . . . Melee . | . . . . Knockbacks . | . . . . Impact . | . . . . Kinetic . | . . . . Secondary . | . . . . Self-Inflicted Damage . | . . . . Shots . | . . . . Rammed . | . . . . Targets Rammed . | . . . . Kicked . | . . . . Crushed . | . . . . Highest Temperature 67 | . 67 39 28 Average Temperature 14 | . 25 12 7 Received Heat Transfer 456 | . 6 117 333 Siege Activations . | . . . . Robots Corrupted . | . . . . Combat Hostiles . | . . . . Parts Fried . | . . . . Impact Corruptions . | . . . . Robots Melted . | . . . . Combat Hostiles . | . . . . Parts Melted . | . . . . Heat Transferred 148 | . . . 148 Parts Sabotaged . | . . . . Parts Stolen . | . . . . Parts Stripped . | . . . . Power Chain Reactions . | . . . . Missiles Intercepted . | . . . . Alert | -11 -10 -9 -8 ------- Run | Scr Mat Mat Mat Peak Influence 386 | . 110 386 268 Initial 162 | . . 46 162 Average 165 | . 52 231 212 Maximum Alert Level 1 | . . 1 1 Low Security (%) 55 | 100 100 37 29 Level 1 44 | . . 62 70 Level 2 . | . . . . Level 3 . | . . . . Level 4 . | . . . . Level 5 . | . . . . High Security . | . . . . Max Security . | . . . . Squads Dispatched 2 | . 1 . 1 Investigation 1 | . . . 1 Extermination . | . . . . Reinforcement 1 | . 1 . . Assault . | . . . . Garrison . | . . . . Intercept . | . . . . Construction Impeded . | . . . . Haulers Reinforced . | . . . . Stealth | -11 -10 -9 -8 --------- Run | Scr Mat Mat Mat Distress Signals 6 | . 3 . 3 Communications Jammed . | . . . . Distress Signals . | . . . . Times Spotted 38 | . 10 15 13 Peak Tracking Total 7 | . 4 4 7 Tactical Retreats 2 | . 1 1 . Traps | -11 -10 -9 -8 ------- Run | Scr Mat Mat Mat Traps Triggered 1 | . . . 1 Indirectly . | . . . . Trap Hack Attempts . | . . . . Triggered . | . . . . Disarmed . | . . . . Reprogrammed . | . . . . Reused . | . . . . Traps Extracted . | . . . . Installed . | . . . . Triggered . | . . . . Machines | -11 -10 -9 -8 ---------- Run | Scr Mat Mat Mat Machines Disabled . | . . . . Max in Single Turn . | . . . . Machines Sabotaged . | . . . . Garrisons Compromised . | . . . . Overloaded Fab Kills . | . . . . Fab Network Shutdowns . | . . . . Hacking | -11 -10 -9 -8 --------- Run | Scr Mat Mat Mat Machines Accessed . | . . . . Terminals . | . . . . Fabricators . | . . . . Repair Stations . | . . . . Recycling Units . | . . . . Scanalyzers . | . . . . Garrison Access . | . . . . Total Hacks . | . . . . Successful . | . . . . Failed . | . . . . Catastrophic . | . . . . Database Lockouts . | . . . . Manual . | . . . . Terminals . | . . . . Fabricators . | . . . . Repair Stations . | . . . . Recycling Units . | . . . . Scanalyzers . | . . . . Garrison Access . | . . . . Terminal Hacks . | . . . . Fabricator Hacks . | . . . . Repair Station Hacks . | . . . . Recycling Unit Hacks . | . . . . Scanalyzer . | . . . . Garrison Access Hacks . | . . . . Unauthorized Hacks . | . . . . Terminals . | . . . . Fabricators . | . . . . Repair Stations . | . . . . Recycling Units . | . . . . Scanalyzers . | . . . . Garrison Access . | . . . . Data Cores Recovered 1 | . 1 . . Used . | . . . . Hacking Detections . | . . . . Full Trace Events . | . . . . Feedback Events . | . . . . Feedback Blocked . | . . . . Robot Schematics Acquired . | . . . . Robots Built . | . . . . Matter . | . . . . Time . | . . . . Total Robot Build Rating . | . . . . Part Schematics Acquired . | . . . . Parts Built . | . . . . Matter . | . . . . Time . | . . . . Total Part Build Rating . | . . . . Parts Repaired . | . . . . Time . | . . . . Parts Recycled . | . . . . Recycled Matter . | . . . . Retrieved Matter . | . . . . Retrieved Components . | . . . . Parts Scanalyzed . | . . . . Part Schematics Acquired . | . . . . Parts Damaged . | . . . . Bothacking | -11 -10 -9 -8 ------------ Run | Scr Mat Mat Mat Used RIF Installer . | . . . . Robots Hacked . | . . . . Non-combat . | . . . . Combat . | . . . . Robot Hacks Applied . | . . . . Relay Couplers Released . | . . . . Robots Rewired . | . . . . Allies Hacked . | . . . . Hacks Repelled . | . . . . Allies | -11 -10 -9 -8 -------- Run | Scr Mat Mat Mat Total Allies . | . . . . Largest Group . | . . . . Highest-Rated Group . | . . . . Highest-Rated Ally . | . . . . Total Orders . | . . . . Ally Attacks . | . . . . Total Damage . | . . . . Kills . | . . . . Allies Corrupted . | . . . . Allies Melted . | . . . . Intel | -11 -10 -9 -8 ------- Run | Scr Mat Mat Mat Robot Analysis Total . | . . . . Derelict Logs Recovered . | . . . . Drone Launches . | . . . . Drone Recoveries . | . . . . Exploration | -11 -10 -9 -8 ------------- Run | Scr Mat Mat Mat Turns Passed 705 | 48 175 285 197 Spaces Moved 427 | 36 129 187 75 Core 23 | 7 . . 16 Treads . | . . . . Legs . | . . . . Wheels 390 | 29 129 187 45 Hover 14 | . . . 14 Flight . | . . . . Fastest Speed 50 | 50 100 100 100 Average Speed 109 | 90 100 102 151 Slowest Speed 350 | 100 100 110 350 Overloaded Moves . | . . . . Propulsion Burnouts . | . . . . Robots Hopped . | . . . . Cave-ins Triggered . | . . . . Exploration Rate (%) 19 | 3 31 30 14 Regions Visited 3 Branch Regions . Pre-discovered Areas . | . . . . Known Exits Taken . | . . . . Unknown Exits Taken 3 | 1 1 1 . Scrap Searched . | . . . . Spaces Dug . | . . . . Terrain Destroyed . | . . . . Melee . | . . . . Projectile . | . . . . AOE . | . . . . Terrain Rammed . | . . . . Walls Destroyed . | . . . . Machines Disabled . | . . . . Actions | -11 -10 -9 -8 --------- Run | Scr Mat Mat Mat Total 554 | 51 157 227 119 Wait 3 | 1 . 2 . Move 424 | 35 128 186 75 Hop . | . . . . Pick Up 22 | 10 8 1 3 Fast Attach . | . . . . Attach 17 | 5 2 . 10 Detach 2 | . . . 2 Swap 2 | . 2 . . Drop 5 | . 5 . . Fire 79 | . 12 38 29 Melee . | . . . . Ram . | . . . . Kick . | . . . . Crush . | . . . . Escape Stasis . | . . . . Rewire . | . . . . Trap . | . . . . Miscellaneous . | . . . . Route ------- -11/Scrapyard -10/Materials -9/Materials -8/Materials History --------- Turn | Location | Event 19 | -11/Scrapyard | Discovered new exit (range 15) 49 | -11/Scrapyard | Entered Materials 212 | -10/Materials | Discovered new exit (range 10) 224 | -10/Materials | Entered another Materials area 224 | -9/Materials | Evolved 2 slots: Utility x2 316 | -9/Materials | Build established: Mutant 505 | -9/Materials | Discovered new exit (range 4) 509 | -9/Materials | Entered another Materials area 509 | -8/Materials | Evolved 2 slots: Propulsion x2 669 | -8/Materials | Core integrity fell below 50% 678 | -8/Materials | Core integrity fell below 20% 694 | -8/Materials | Lost 9 parts (2p3n4w) 706 | -8/Materials | Destroyed by G-47 Trooper with Particle Gun Last Messages --------------- R-06 Scavenger collects Heat Sink. Slug penetrates Wall. K-01 Serf collects debris. Slug penetrates Wall. Y-45 Defender destroyed. K-01 Serf collects debris. Triggered Alarm Trap. An alarm sounds. ALERT: Alarm triggered, dispatching investigation squad. Penetrated by Slug. R-06 Scavenger collects Heat Sink. U-05 Engineer lays Concrete. K-01 Serf collects debris. Penetrated by Slug. U-05 Engineer lays Concrete. K-01 Serf collects debris. U-05 Engineer lays Concrete. K-01 Serf collects debris. Y-45 Defender destroyed. K-01 Serf collects debris. Map ----- +----------------------------------------------------+ | ?????????????????????????????????????????????????? | | ?????????????????????????????????????????????????? | | ?????????????????????????????????????????????????? | | ?????????????????????????????????????????????????? | | ?????????????????????????????????????????????????? | | ?????????????????????????????????????????????????? | | ?????????????????????????????????????????????????? | | ?????????????????????????????????????????????????? | | ?????????????????????????????????????????????????? | | ?????????????????????????????????????????????????? | | ?????????????????????????????????????????????????? | | ?????????????????????????????????????????????????? | | ?????????????????????????????????????????????????? | | ?????????????????????????+???????????????????????? | | ??????????????????????### ##?????????????????????? | | ?????????????????????? ?????????????????????? | | ??????????????????????? ?????????????????????? | | ??????????????????????? ?????????????????????? | | ???????????????????????#k #???????????#?????????? | | ???????????????????????# #?????????? #?????????? | | ???????????????????????# #????????? #?????????? | | ??????????? ?????????# #????????? #?????????? | | ??????????? ???????# #???????? #?????????? | | ??????????# ?? ???# #???????? #?????????? | | ??????????# "?? ??## ##??????# ##????????? | | ??????????# """ ??# @ ####### #????????? | | ??????????# """ #?# ##???????? | | ??????????# #?# k +???????? | | ######????# #?# g!= #????????? | | #????# """ #?# ###h! # #????????? | | #????# """ #?#######?# #??####????????? | | """ #????# """ #?????????# #??????????????? | | """ #????# #?????????# #??????????????? | | """ #????# #?????????# #??????????????? | | #????#] """ #?????????# = #########??????? | | ##+######## """ ########### %! ??? | | """ ! ??? | | % ??? | | % #############??? | | ####+#############+############ #??????????????? | | [ #????# #?????# #??????????????? | | #????# #?????# #??????????????? | | #????# #?????# ?????????????? | | #????# ] #?????# ????????????? | | #????# #?????# ???????????? | | ]!! #????# """ """ #?????#########??????????? | | ]! #????# """ """ #????????????????????????? | | ]! #????# """ """ #????????????????????????? | | ##########????###########????????????????????????? | | ?????????????????????????????????????????????????? | +----------------------------------------------------+ Best States ------------- Heat Dissipation 31 Energy Generation 14 Energy Capacity 250 Matter Stores 300 Matter Capacity 300 Sight Range 16 Terrain Scan Density 110 Armor Coverage 150 Evasion (%) 40 Item Schematics ----------------- None Robot Schematics ------------------ None Fabricated ------------ Nothing Alien Tech Used ----------------- None Achievements -------------- None Challenges ------------ None Game ------ Seed LinkedIntegrationWarhead Manual? 0 Play Time 00:11:18 Cumulative 21.0 hours Start 2021.08.16 @ 23:02:56 End 2021.08.16 @ 23:11:15 Sessions 1 Manual Loads 0 Difficulty Rogue Special Mode None Game No. 57 Rogue 37 Adventurer 20 Explorer 0 Win Type - Total 1 Types 1/0/0/0/0/0/0/0/0 Lore% 18 Gallery% 42 Achievement% 30 Wizard Run 0 Options --------- ASCII 0 Keyboard 0 Movement Numpad Keybinds 0 Fullscreen 1 Font 18/SmallcapsGlow Map View 76x50 Tactical HUD 0 Map Filters NONE Filters NONE Steam 1 RUN: 6db34c7f-c344-474b-be6f-ed25fb4738df